[Event "Late-Titled-Tuesday-Blitz-February-27-2024"]
[Site "Chess.com"]
[Date "2024.02.27"]
[Round "7"]
[White "OverallStranger"]
[Black "chess94cu"]
[Result "0-1"]
[WhiteElo "2407"]
[BlackElo "2707"]
[TimeControl "180+1"]
[EndTime "15:16:39 PST"]
[Termination "chess94cu won by resignation"]

1. e4 {[%clk 0:03:00.9]} 1... d6 {[%clk 0:02:57.9]} 2. d4 {[%clk 0:03:00.8]}
2... Nf6 {[%clk 0:02:56.4]} 3. Nc3 {[%clk 0:02:59.7]} 3... e5 {[%clk 0:02:56.6]}
4. Nge2 {[%clk 0:02:58.5]} 4... Nbd7 {[%clk 0:02:54.4]} 5. g3 {[%clk 0:02:58.2]}
5... c6 {[%clk 0:02:54.1]} 6. a4 {[%clk 0:02:57.6]} 6... Qc7 {[%clk 0:02:53.9]}
7. Bg2 {[%clk 0:02:57.7]} 7... g6 {[%clk 0:02:54.3]} 8. O-O {[%clk 0:02:57.7]}
8... Bg7 {[%clk 0:02:55]} 9. h3 {[%clk 0:02:58.1]} 9... O-O {[%clk 0:02:54.5]}
10. Be3 {[%clk 0:02:58.1]} 10... Re8 {[%clk 0:02:53.9]} 11. g4 {[%clk
0:02:57.1]} 11... b6 {[%clk 0:02:49.6]} 12. Ng3 {[%clk 0:02:54.9]} 12... Nf8
{[%clk 0:02:43.7]} 13. f4 {[%clk 0:02:47.6]} 13... exf4 {[%clk 0:02:38.3]} 14.
Bxf4 {[%clk 0:02:46.2]} 14... Bb7 {[%clk 0:02:35.7]} 15. e5 {[%clk 0:02:36.8]}
15... dxe5 {[%clk 0:02:34.5]} 16. dxe5 {[%clk 0:02:17.9]} 16... Nd5 {[%clk
0:02:31.1]} 17. Nxd5 {[%clk 0:02:07.8]} 17... cxd5 {[%clk 0:02:32]} 18. Re1
{[%clk 0:01:34.5]} 18... Ne6 {[%clk 0:02:25]} 19. Bd2 {[%clk 0:01:27.7]} 19...
Bxe5 {[%clk 0:02:21.9]} 20. Ne2 {[%clk 0:01:27.9]} 20... Bxb2 {[%clk 0:02:15.3]}
21. Rb1 {[%clk 0:01:27.8]} 21... Bg7 {[%clk 0:02:13.1]} 22. a5 {[%clk
0:01:26.5]} 22... d4 {[%clk 0:01:49.4]} 23. axb6 {[%clk 0:01:13]} 23... axb6
{[%clk 0:01:47.5]} 24. Nc1 {[%clk 0:01:07.8]} 24... Qg3 {[%clk 0:01:38.9]} 25.
Re2 {[%clk 0:01:03.3]} 25... Bxg2 {[%clk 0:01:07.2]} 26. Rxg2 {[%clk 0:01:00.7]}
26... Qxh3 {[%clk 0:01:02.7]} 27. Rb3 {[%clk 0:01:00.7]} 27... d3 {[%clk
0:00:49.1]} 28. Nxd3 {[%clk 0:00:41.8]} 28... Bd4+ {[%clk 0:00:32]} 29. Nf2
{[%clk 0:00:41.9]} 29... Qh4 {[%clk 0:00:29.6]} 30. Rh2 {[%clk 0:00:38.2]} 30...
Qf6 {[%clk 0:00:20.6]} 31. Rf3 {[%clk 0:00:36.8]} 31... Qe5 {[%clk 0:00:19.2]}
32. c3 {[%clk 0:00:32.5]} 32... Bc5 {[%clk 0:00:18.9]} 33. Kg2 {[%clk
0:00:31.1]} 33... Bxf2 {[%clk 0:00:16.8]} 34. Kxf2 {[%clk 0:00:30.1]} 34... Ng5
{[%clk 0:00:15]} 35. Bxg5 {[%clk 0:00:27.8]} 35... Qxg5 {[%clk 0:00:15.9]} 36.
Rfh3 {[%clk 0:00:27.9]} 36... Ra2+ {[%clk 0:00:14.6]} 37. Kg1 {[%clk 0:00:27.7]}
37... Qc5+ {[%clk 0:00:10.6]} 38. Kh1 {[%clk 0:00:25.9]} 38... Qc6+ {[%clk
0:00:10]} 39. Kg1 {[%clk 0:00:26]} 39... Rxh2 {[%clk 0:00:10.1]} 40. Rxh2 {[%clk
0:00:25.3]} 40... Qxc3 {[%clk 0:00:10.3]} 41. Re2 {[%clk 0:00:20.1]} 41... Qg3+
{[%clk 0:00:09.1]} 42. Kf1 {[%clk 0:00:18.9]} 42... Qf3+ {[%clk 0:00:09.3]} 43.
Ke1 {[%clk 0:00:19]} 43... Rxe2+ {[%clk 0:00:09.3]} 44. Qxe2 {[%clk 0:00:19.7]}
44... Qxe2+ {[%clk 0:00:10.1]} 45. Kxe2 {[%clk 0:00:20.6]} 45... h5 {[%clk
0:00:10.5]} 46. Kd3 {[%clk 0:00:21.5]} 46... hxg4 {[%clk 0:00:10.6]} 0-1

[Event "Late-Titled-Tuesday-Blitz-February-27-2024"]
[Site "Chess.com"]
[Date "2024.02.27"]
[Round "7"]
[White "kalxandria"]
[Black "McCarthyStone"]
[Result "0-1"]
[WhiteElo "2146"]
[BlackElo "2359"]
[TimeControl "180+1"]
[EndTime "15:16:43 PST"]
[Termination "McCarthyStone won by checkmate"]

1. e4 {[%clk 0:03:00.9]} 1... e5 {[%clk 0:02:57.1]} 2. Nf3 {[%clk 0:03:00.4]}
2... d6 {[%clk 0:02:57.4]} 3. Bc4 {[%clk 0:02:59.7]} 3... Nf6 {[%clk 0:02:52.3]}
4. d3 {[%clk 0:02:58.3]} 4... Be7 {[%clk 0:02:52.4]} 5. Nc3 {[%clk 0:02:57.6]}
5... O-O {[%clk 0:02:53]} 6. h3 {[%clk 0:02:56.6]} 6... c6 {[%clk 0:02:53.4]} 7.
Bb3 {[%clk 0:02:55.3]} 7... Nbd7 {[%clk 0:02:54]} 8. O-O {[%clk 0:02:54.7]} 8...
Nc5 {[%clk 0:02:54.6]} 9. Be3 {[%clk 0:02:52]} 9... Nxb3 {[%clk 0:02:54.8]} 10.
axb3 {[%clk 0:02:51.5]} 10... d5 {[%clk 0:02:54.2]} 11. exd5 {[%clk 0:02:51]}
11... cxd5 {[%clk 0:02:55.1]} 12. Bxa7 {[%clk 0:02:45.4]} 12... d4 {[%clk
0:02:22.4]} 13. Nb5 {[%clk 0:02:24.4]} 13... Bd7 {[%clk 0:02:11.4]} 14. c4
{[%clk 0:02:19.3]} 14... Bxb5 {[%clk 0:01:49]} 15. cxb5 {[%clk 0:02:18.8]} 15...
Qd6 {[%clk 0:01:27.1]} 16. b6 {[%clk 0:02:17.3]} 16... Nd5 {[%clk 0:01:23.1]}
17. Re1 {[%clk 0:02:16]} 17... f6 {[%clk 0:01:19.8]} 18. Ra4 {[%clk 0:02:02.7]}
18... Nf4 {[%clk 0:01:11.5]} 19. Kh2 {[%clk 0:01:30]} 19... Rac8 {[%clk
0:00:57.6]} 20. g3 {[%clk 0:01:17.4]} 20... Nd5 {[%clk 0:00:53.7]} 21. Qe2
{[%clk 0:00:58.9]} 21... Rfe8 {[%clk 0:00:49.3]} 22. Qe4 {[%clk 0:00:56.9]}
22... g6 {[%clk 0:00:44.2]} 23. Ra5 {[%clk 0:00:54.6]} 23... Rcd8 {[%clk
0:00:37.2]} 24. Nd2 {[%clk 0:00:46.3]} 24... Qb4 {[%clk 0:00:12.3]} 25. Nc4
{[%clk 0:00:40]} 25... f5 {[%clk 0:00:06]} 26. Qxe5 {[%clk 0:00:39.3]} 26... Bf6
{[%clk 0:00:05.9]} 27. Qxe8+ {[%clk 0:00:38.2]} 27... Rxe8 {[%clk 0:00:06.3]}
28. Rxe8+ {[%clk 0:00:38.8]} 28... Kf7 {[%clk 0:00:06.8]} 29. Rb8 {[%clk
0:00:38.5]} 29... Qxb3 {[%clk 0:00:04.1]} 30. Rxd5 {[%clk 0:00:38.4]} 30... Qxd3
{[%clk 0:00:03.7]} 31. Rxb7+ {[%clk 0:00:38.5]} 31... Be7 {[%clk 0:00:03.8]} 32.
Rdd7 {[%clk 0:00:36.8]} 32... Qxc4 {[%clk 0:00:03.3]} 33. Rxe7+ {[%clk
0:00:36.9]} 33... Kf6 {[%clk 0:00:03.9]} 34. Rf7+ {[%clk 0:00:36]} 34... Kg5
{[%clk 0:00:03.1]} 35. h4+ {[%clk 0:00:36.2]} 35... Kg4 {[%clk 0:00:03.1]} 36.
Rxh7 {[%clk 0:00:32.4]} 36... Qe2 {[%clk 0:00:02.8]} 37. Kg2 {[%clk 0:00:26.9]}
37... Qf3+ {[%clk 0:00:02.5]} 38. Kg1 {[%clk 0:00:26.6]} 38... Qd1+ {[%clk
0:00:03]} 39. Kh2 {[%clk 0:00:26.9]} 39... Kf3 {[%clk 0:00:02.9]} 40. Rbe7
{[%clk 0:00:25.2]} 40... Qf1 {[%clk 0:00:02.7]} 41. Re3+ {[%clk 0:00:20.8]}
41... dxe3 {[%clk 0:00:03.6]} 42. Bb8 {[%clk 0:00:16.8]} 42... Qg2# {[%clk
0:00:03]} 0-1

[Event "Late-Titled-Tuesday-Blitz-February-27-2024"]
[Site "Chess.com"]
[Date "2024.02.27"]
[Round "7"]
[White "ahkashefi2800"]
[Black "Sokoloco"]
[Result "1-0"]
[WhiteElo "2643"]
[BlackElo "2780"]
[TimeControl "180+1"]
[EndTime "15:16:44 PST"]
[Termination "ahkashefi2800 won by resignation"]

1. d4 {[%clk 0:03:00]} 1... d6 {[%clk 0:03:00.4]} 2. Nf3 {[%clk 0:02:59.4]} 2...
g6 {[%clk 0:03:00.8]} 3. g3 {[%clk 0:02:59.7]} 3... Bg7 {[%clk 0:03:01.1]} 4.
Bg2 {[%clk 0:03:00.2]} 4... b6 {[%clk 0:02:58.3]} 5. b3 {[%clk 0:03:00.3]} 5...
Bb7 {[%clk 0:02:58.3]} 6. Bb2 {[%clk 0:03:00.6]} 6... Nf6 {[%clk 0:02:58.8]} 7.
O-O {[%clk 0:03:01]} 7... O-O {[%clk 0:02:59.5]} 8. c4 {[%clk 0:03:01.4]} 8...
Nbd7 {[%clk 0:02:55.8]} 9. Nc3 {[%clk 0:03:00.7]} 9... Ne4 {[%clk 0:02:39.9]}
10. Qc2 {[%clk 0:02:57.1]} 10... Nxc3 {[%clk 0:02:31.6]} 11. Bxc3 {[%clk
0:02:56.8]} 11... e6 {[%clk 0:01:57.2]} 12. a4 {[%clk 0:02:53.4]} 12... Nf6
{[%clk 0:01:50.7]} 13. a5 {[%clk 0:02:50.6]} 13... Qd7 {[%clk 0:01:41.2]} 14.
Rfd1 {[%clk 0:02:46]} 14... Be4 {[%clk 0:01:39.1]} 15. Qb2 {[%clk 0:02:41.9]}
15... b5 {[%clk 0:01:37.8]} 16. Ne5 {[%clk 0:02:41.5]} 16... Qe8 {[%clk
0:01:21.1]} 17. Nf3 {[%clk 0:02:29.1]} 17... bxc4 {[%clk 0:01:16.7]} 18. bxc4
{[%clk 0:02:29.3]} 18... Qc6 {[%clk 0:01:17.4]} 19. c5 {[%clk 0:02:23]} 19...
Rab8 {[%clk 0:01:14.7]} 20. Qa3 {[%clk 0:02:19]} 20... Bc2 {[%clk 0:01:03.5]}
21. d5 {[%clk 0:02:10.8]} 21... Qxc5 {[%clk 0:00:42.8]} 22. Rdc1 {[%clk
0:02:04.6]} 22... Qxa3 {[%clk 0:00:39.7]} 23. Rxa3 {[%clk 0:02:04.3]} 23... Bf5
{[%clk 0:00:27.8]} 24. Nd4 {[%clk 0:01:48.5]} 24... Nxd5 {[%clk 0:00:21.2]} 25.
Bxd5 {[%clk 0:01:47.6]} 25... exd5 {[%clk 0:00:21.4]} 26. Nxf5 {[%clk
0:01:47.5]} 26... gxf5 {[%clk 0:00:21.2]} 27. Bxg7 {[%clk 0:01:47.3]} 27... Kxg7
{[%clk 0:00:22.1]} 28. Rxc7 {[%clk 0:01:47]} 28... Rb2 {[%clk 0:00:19.1]} 29. e3
{[%clk 0:01:44.3]} 29... Rd2 {[%clk 0:00:10.3]} 30. Ra4 {[%clk 0:01:41.1]} 30...
Rb8 {[%clk 0:00:04.5]} 31. Rxa7 {[%clk 0:01:37.9]} 31... Kf6 {[%clk 0:00:01.9]}
32. Ra6 {[%clk 0:01:33.1]} 32... Ke6 {[%clk 0:00:01.5]} 33. Kg2 {[%clk
0:01:25.3]} 33... Rbb2 {[%clk 0:00:01.9]} 34. Rf4 {[%clk 0:01:25]} 34... Ra2
{[%clk 0:00:02.2]} 35. Ra8 {[%clk 0:01:25.1]} 35... Ra3 {[%clk 0:00:02.1]} 36.
a6 {[%clk 0:01:25.5]} 36... Rxe3 {[%clk 0:00:01.7]} 37. Re8+ {[%clk 0:01:25.3]}
37... Kf6 {[%clk 0:00:01.5]} 38. Rxe3 {[%clk 0:01:24.9]} 38... Ra2 {[%clk
0:00:02.2]} 39. Rd3 {[%clk 0:01:25.1]} 39... Rxa6 {[%clk 0:00:02.6]} 40. Rxd5
{[%clk 0:01:25.4]} 40... Ke6 {[%clk 0:00:03.5]} 41. Rdxf5 {[%clk 0:01:25.8]}
41... Ra2 {[%clk 0:00:03.1]} 42. Rxf7 {[%clk 0:01:26]} 42... h5 {[%clk
0:00:03.7]} 43. R4f6+ {[%clk 0:01:26.1]} 43... Ke5 {[%clk 0:00:04]} 44. Rf5+
{[%clk 0:01:26.7]} 44... Ke6 {[%clk 0:00:04.4]} 45. R7f6+ {[%clk 0:01:27.2]}
45... Ke7 {[%clk 0:00:05]} 46. Rh6 {[%clk 0:01:27.7]} 46... h4 {[%clk
0:00:05.5]} 47. Rxh4 {[%clk 0:01:27.9]} 47... Ke6 {[%clk 0:00:06]} 48. Rhf4
{[%clk 0:01:28.2]} 48... Rd2 {[%clk 0:00:05.6]} 49. Rf3 {[%clk 0:01:28.1]} 49...
d5 {[%clk 0:00:05.4]} 50. h4 {[%clk 0:01:28.7]} 50... d4 {[%clk 0:00:05.5]} 51.
h5 {[%clk 0:01:28.9]} 51... d3 {[%clk 0:00:06.1]} 52. Rf8 {[%clk 0:01:28.8]}
52... Rd1 {[%clk 0:00:05.9]} 53. h6 {[%clk 0:01:28.2]} 53... d2 {[%clk
0:00:06.4]} 54. h7 {[%clk 0:01:22.9]} 54... Rg1+ {[%clk 0:00:06.5]} 55. Kxg1
{[%clk 0:01:23.2]} 55... d1=Q+ {[%clk 0:00:06.8]} 56. Kg2 {[%clk 0:01:23.7]}
56... Ke7 {[%clk 0:00:02.2]} 57. h8=Q {[%clk 0:01:18.6]} 57... Qb1 {[%clk
0:00:02.3]} 58. Qf6+ {[%clk 0:01:16.9]} 58... Kd7 {[%clk 0:00:02.7]} 59. Rd3+
{[%clk 0:01:16.3]} 59... Kc7 {[%clk 0:00:02.9]} 60. Qd6+ {[%clk 0:01:16.2]}
60... Kb7 {[%clk 0:00:03.3]} 61. Rb3+ {[%clk 0:01:14.6]} 61... Qxb3 {[%clk
0:00:03.2]} 62. Rb8+ {[%clk 0:01:14]} 1-0

[Event "Late-Titled-Tuesday-Blitz-February-27-2024"]
[Site "Chess.com"]
[Date "2024.02.27"]
[Round "7"]
[White "SilverSwords13"]
[Black "MatyChess1"]
[Result "1-0"]
[WhiteElo "2496"]
[BlackElo "2642"]
[TimeControl "180+1"]
[EndTime "15:16:45 PST"]
[Termination "SilverSwords13 won by resignation"]

1. e4 {[%clk 0:03:00.9]} 1... c6 {[%clk 0:02:58.4]} 2. d4 {[%clk 0:03:00.5]}
2... d5 {[%clk 0:02:59.3]} 3. e5 {[%clk 0:03:00.2]} 3... Bf5 {[%clk 0:02:59.8]}
4. h4 {[%clk 0:02:59.8]} 4... h5 {[%clk 0:03:00.3]} 5. Bd3 {[%clk 0:02:54.8]}
5... Bxd3 {[%clk 0:02:57.8]} 6. Qxd3 {[%clk 0:02:55.7]} 6... Qa5+ {[%clk
0:02:57.2]} 7. Nd2 {[%clk 0:02:55.3]} 7... e6 {[%clk 0:02:53.7]} 8. Nf3 {[%clk
0:02:55]} 8... Nh6 {[%clk 0:02:54.2]} 9. O-O {[%clk 0:02:52.8]} 9... Nf5 {[%clk
0:02:54.8]} 10. Nb3 {[%clk 0:02:52.5]} 10... Qa6 {[%clk 0:02:53.1]} 11. Qd1
{[%clk 0:02:51.4]} 11... b6 {[%clk 0:02:53.8]} 12. a4 {[%clk 0:02:49]} 12... c5
{[%clk 0:02:54.3]} 13. a5 {[%clk 0:02:46.1]} 13... Qb7 {[%clk 0:02:53.9]} 14.
Bg5 {[%clk 0:02:35.2]} 14... Nc6 {[%clk 0:02:50.4]} 15. axb6 {[%clk 0:02:23]}
15... axb6 {[%clk 0:02:50.3]} 16. Rxa8+ {[%clk 0:02:22]} 16... Qxa8 {[%clk
0:02:51.2]} 17. Qa1 {[%clk 0:02:21.8]} 17... Qb7 {[%clk 0:02:35.4]} 18. c3
{[%clk 0:02:11.7]} 18... c4 {[%clk 0:02:04.9]} 19. Nbd2 {[%clk 0:02:07.2]} 19...
Be7 {[%clk 0:02:05.8]} 20. Qa2 {[%clk 0:01:55.1]} 20... Bxg5 {[%clk 0:02:02.2]}
21. hxg5 {[%clk 0:01:55]} 21... O-O {[%clk 0:01:59.7]} 22. Ra1 {[%clk
0:01:52.5]} 22... Rb8 {[%clk 0:02:00.1]} 23. Qa6 {[%clk 0:01:45.4]} 23... b5
{[%clk 0:01:59.5]} 24. b4 {[%clk 0:01:36.4]} 24... Qxa6 {[%clk 0:01:43.8]} 25.
Rxa6 {[%clk 0:01:32.5]} 25... Nfe7 {[%clk 0:01:44.7]} 26. Nb1 {[%clk 0:01:24.6]}
26... Kh7 {[%clk 0:01:42.4]} 27. Nh4 {[%clk 0:01:20.4]} 27... Rb7 {[%clk
0:01:38.4]} 28. Na3 {[%clk 0:00:34.1]} 28... Ra7 {[%clk 0:01:38]} 29. Rxa7
{[%clk 0:00:34.8]} 29... Nxa7 {[%clk 0:01:38.9]} 30. f4 {[%clk 0:00:35.3]} 30...
Nec8 {[%clk 0:01:36.6]} 31. Kf2 {[%clk 0:00:36.1]} 31... Nb6 {[%clk 0:01:36.8]}
32. Ke3 {[%clk 0:00:35.3]} 32... Na4 {[%clk 0:01:37.1]} 33. Kd2 {[%clk
0:00:36.1]} 33... Nb2 {[%clk 0:01:05.7]} 34. f5 {[%clk 0:00:29.1]} 34... exf5
{[%clk 0:01:05.6]} 35. Nxf5 {[%clk 0:00:30]} 35... Kg6 {[%clk 0:01:04.7]} 36.
Nd6 {[%clk 0:00:27.3]} 36... Kxg5 {[%clk 0:01:04.9]} 37. Nxf7+ {[%clk 0:00:26]}
37... Kf5 {[%clk 0:00:53.4]} 38. Nd6+ {[%clk 0:00:26.1]} 38... Ke6 {[%clk
0:00:52.3]} 39. Naxb5 {[%clk 0:00:25.9]} 39... Nxb5 {[%clk 0:00:47.2]} 40. Nxb5
{[%clk 0:00:26.8]} 40... Kd7 {[%clk 0:00:44.8]} 41. Nd6 {[%clk 0:00:22.3]} 41...
g6 {[%clk 0:00:42.8]} 42. b5 {[%clk 0:00:22.5]} 42... Na4 {[%clk 0:00:42.2]} 43.
Ke3 {[%clk 0:00:20.7]} 43... Nxc3 {[%clk 0:00:41.1]} 44. b6 {[%clk 0:00:21.4]}
44... g5 {[%clk 0:00:12.8]} 45. b7 {[%clk 0:00:22.3]} 45... Kc7 {[%clk
0:00:12.8]} 46. e6 {[%clk 0:00:21.5]} 46... Nd1+ {[%clk 0:00:06]} 47. Kd2 {[%clk
0:00:21.6]} 47... Nf2 {[%clk 0:00:04.7]} 48. e7 {[%clk 0:00:22.2]} 1-0

[Event "Late-Titled-Tuesday-Blitz-February-27-2024"]
[Site "Chess.com"]
[Date "2024.02.27"]
[Round "7"]
[White "CarlosjPineror"]
[Black "IMRosen"]
[Result "0-1"]
[WhiteElo "2543"]
[BlackElo "2699"]
[TimeControl "180+1"]
[EndTime "15:16:47 PST"]
[Termination "IMRosen won on time"]

1. e4 {[%clk 0:03:00.6]} 1... c5 {[%clk 0:02:58.7]} 2. Nf3 {[%clk 0:03:00.4]}
2... Nc6 {[%clk 0:02:57.6]} 3. g3 {[%clk 0:02:59.4]} 3... e5 {[%clk 0:02:55.1]}
4. Bg2 {[%clk 0:02:59.5]} 4... d6 {[%clk 0:02:54.6]} 5. O-O {[%clk 0:02:59.8]}
5... g6 {[%clk 0:02:54.7]} 6. c3 {[%clk 0:03:00]} 6... Bg7 {[%clk 0:02:54.9]} 7.
Na3 {[%clk 0:02:59.8]} 7... Nge7 {[%clk 0:02:55]} 8. Nc2 {[%clk 0:02:59.1]} 8...
O-O {[%clk 0:02:55.4]} 9. d4 {[%clk 0:02:54.1]} 9... cxd4 {[%clk 0:02:52.9]} 10.
cxd4 {[%clk 0:02:55]} 10... Bg4 {[%clk 0:02:47.3]} 11. d5 {[%clk 0:02:53.9]}
11... Nb8 {[%clk 0:02:25.2]} 12. h3 {[%clk 0:02:53.6]} 12... Bxf3 {[%clk
0:02:24]} 13. Bxf3 {[%clk 0:02:51.8]} 13... Nd7 {[%clk 0:02:24.5]} 14. Be3
{[%clk 0:02:51.3]} 14... f5 {[%clk 0:02:23.8]} 15. Bg5 {[%clk 0:02:51.3]} 15...
h6 {[%clk 0:02:22]} 16. Bxe7 {[%clk 0:02:51]} 16... Qxe7 {[%clk 0:02:22.9]} 17.
Ne3 {[%clk 0:02:40.8]} 17... f4 {[%clk 0:02:15.8]} 18. Ng2 {[%clk 0:02:28.4]}
18... h5 {[%clk 0:02:11.1]} 19. g4 {[%clk 0:02:28.3]} 19... Nc5 {[%clk
0:01:51.1]} 20. b4 {[%clk 0:02:23.5]} 20... hxg4 {[%clk 0:01:49.4]} 21. bxc5
{[%clk 0:02:10]} 21... gxf3 {[%clk 0:01:40.3]} 22. cxd6 {[%clk 0:02:10.4]} 22...
Qxd6 {[%clk 0:01:32.2]} 23. Qxf3 {[%clk 0:02:10.3]} 23... Rac8 {[%clk
0:01:20.8]} 24. Rfc1 {[%clk 0:02:08.7]} 24... Rc5 {[%clk 0:01:12.6]} 25. Rxc5
{[%clk 0:02:05.3]} 25... Qxc5 {[%clk 0:01:12.6]} 26. Rd1 {[%clk 0:02:06]} 26...
Rf6 {[%clk 0:01:07.5]} 27. Qb3 {[%clk 0:01:55.7]} 27... Rb6 {[%clk 0:00:53]} 28.
Qd3 {[%clk 0:01:34]} 28... Rb2 {[%clk 0:00:45.7]} 29. Qf3 {[%clk 0:01:28.6]}
29... Bf8 {[%clk 0:00:43.1]} 30. h4 {[%clk 0:01:25]} 30... Qb6 {[%clk
0:00:39.9]} 31. a4 {[%clk 0:01:03.8]} 31... Bc5 {[%clk 0:00:36.7]} 32. Qg4
{[%clk 0:00:53.5]} 32... Rxf2 {[%clk 0:00:24.3]} 33. Kh1 {[%clk 0:00:53.4]}
33... Qf6 {[%clk 0:00:15.6]} 34. d6 {[%clk 0:00:31.5]} 34... Bxd6 {[%clk
0:00:12.7]} 35. Qc8+ {[%clk 0:00:31.1]} 35... Bf8 {[%clk 0:00:12.9]} 36. Qg4
{[%clk 0:00:23.2]} 36... f3 {[%clk 0:00:05]} 37. Ne3 {[%clk 0:00:23.1]} 37...
Re2 {[%clk 0:00:04.3]} 38. Nd5 {[%clk 0:00:22.7]} 38... Qf7 {[%clk 0:00:03.9]}
39. Rf1 {[%clk 0:00:16]} 39... Rg2 {[%clk 0:00:03.6]} 0-1

[Event "Late-Titled-Tuesday-Blitz-February-27-2024"]
[Site "Chess.com"]
[Date "2024.02.27"]
[Round "7"]
[White "GodzillaChessYoutube"]
[Black "NovakRatko"]
[Result "1-0"]
[WhiteElo "2641"]
[BlackElo "2469"]
[TimeControl "180+1"]
[EndTime "15:16:57 PST"]
[Termination "GodzillaChessYoutube won by checkmate"]

1. d4 {[%clk 0:03:00.9]} 1... d5 {[%clk 0:02:51.6]} 2. Nh3 {[%clk 0:03:01.8]}
2... c5 {[%clk 0:02:51.7]} 3. Nf4 {[%clk 0:02:55.6]} 3... cxd4 {[%clk
0:02:50.8]} 4. Qxd4 {[%clk 0:02:56.5]} 4... Nc6 {[%clk 0:02:50.8]} 5. Qxd5
{[%clk 0:02:50.8]} 5... Bd7 {[%clk 0:02:51]} 6. c3 {[%clk 0:02:45]} 6... Nf6
{[%clk 0:02:51.1]} 7. Qd1 {[%clk 0:02:42.8]} 7... e5 {[%clk 0:02:50.9]} 8. Nd3
{[%clk 0:02:08.9]} 8... Qc7 {[%clk 0:02:48.1]} 9. g3 {[%clk 0:02:05.4]} 9...
O-O-O {[%clk 0:02:47.2]} 10. Bg2 {[%clk 0:01:23.2]} 10... e4 {[%clk 0:02:42.4]}
11. Bf4 {[%clk 0:01:16.9]} 11... Qb6 {[%clk 0:02:27.2]} 12. Be3 {[%clk
0:01:16.3]} 12... Qc7 {[%clk 0:02:19]} 13. Nf4 {[%clk 0:01:08.7]} 13... g5
{[%clk 0:02:16.3]} 14. Nd5 {[%clk 0:01:07.5]} 14... Nxd5 {[%clk 0:02:08.1]} 15.
Qxd5 {[%clk 0:01:08.4]} 15... f5 {[%clk 0:02:03.3]} 16. Bxg5 {[%clk 0:00:58.8]}
16... Be7 {[%clk 0:01:55.1]} 17. Bf4 {[%clk 0:00:55.4]} 17... Qb6 {[%clk
0:01:54.6]} 18. Qb3 {[%clk 0:00:55.8]} 18... Qc5 {[%clk 0:01:46.3]} 19. Nd2
{[%clk 0:00:49.8]} 19... Ne5 {[%clk 0:01:25.5]} 20. Qb4 {[%clk 0:00:38.3]} 20...
Qd5 {[%clk 0:01:17.8]} 21. Qxe7 {[%clk 0:00:28.4]} 21... Rhe8 {[%clk 0:01:16.6]}
22. Qb4 {[%clk 0:00:19.5]} 22... Bc6 {[%clk 0:01:12.5]} 23. O-O-O {[%clk
0:00:15]} 23... Qxa2 {[%clk 0:01:09.9]} 24. Qa3 {[%clk 0:00:15.5]} 24... Qe6
{[%clk 0:01:02.2]} 25. Bxe5 {[%clk 0:00:15.7]} 25... Qxe5 {[%clk 0:01:01.7]} 26.
e3 {[%clk 0:00:16.1]} 26... Kb8 {[%clk 0:00:55.8]} 27. Nb3 {[%clk 0:00:16.3]}
27... Bb5 {[%clk 0:00:52.1]} 28. Rd4 {[%clk 0:00:13.1]} 28... Bd3 {[%clk
0:00:50.5]} 29. Rd1 {[%clk 0:00:12.6]} 29... Rc8 {[%clk 0:00:49.4]} 30. R4xd3
{[%clk 0:00:10.9]} 30... exd3 {[%clk 0:00:48.7]} 31. Rxd3 {[%clk 0:00:11.8]}
31... h5 {[%clk 0:00:41.2]} 32. Qd6+ {[%clk 0:00:11.2]} 32... Qxd6 {[%clk
0:00:31]} 33. Rxd6 {[%clk 0:00:12.1]} 33... Rcd8 {[%clk 0:00:30.5]} 34. Rxd8+
{[%clk 0:00:11.7]} 34... Rxd8 {[%clk 0:00:30.7]} 35. Nd4 {[%clk 0:00:12.4]}
35... Rf8 {[%clk 0:00:28.8]} 36. h4 {[%clk 0:00:12.9]} 36... Kc7 {[%clk
0:00:28.1]} 37. b4 {[%clk 0:00:12.9]} 37... Kd6 {[%clk 0:00:28.2]} 38. Kc2
{[%clk 0:00:12.7]} 38... a6 {[%clk 0:00:28.2]} 39. Kd3 {[%clk 0:00:12.7]} 39...
b5 {[%clk 0:00:28.1]} 40. Bf3 {[%clk 0:00:12.2]} 40... Ke5 {[%clk 0:00:27.8]}
41. Bxh5 {[%clk 0:00:12.2]} 41... Rc8 {[%clk 0:00:24.3]} 42. Bg6 {[%clk
0:00:12]} 42... f4 {[%clk 0:00:22.9]} 43. gxf4+ {[%clk 0:00:11.8]} 43... Kf6
{[%clk 0:00:23.1]} 44. h5 {[%clk 0:00:12.7]} 44... Ra8 {[%clk 0:00:19.7]} 45. e4
{[%clk 0:00:13]} 45... a5 {[%clk 0:00:19.5]} 46. e5+ {[%clk 0:00:13.9]} 46...
Kg7 {[%clk 0:00:19.3]} 47. bxa5 {[%clk 0:00:14.2]} 47... b4 {[%clk 0:00:19.5]}
48. cxb4 {[%clk 0:00:13.3]} 48... Rc8 {[%clk 0:00:19]} 49. f5 {[%clk 0:00:13.1]}
49... Rc1 {[%clk 0:00:18.8]} 50. f6+ {[%clk 0:00:13.4]} 50... Kf8 {[%clk
0:00:18.4]} 51. Ne6+ {[%clk 0:00:12.8]} 51... Kg8 {[%clk 0:00:18.6]} 52. f7+
{[%clk 0:00:13.7]} 52... Kh8 {[%clk 0:00:18.1]} 53. f8=Q# {[%clk 0:00:14.6]} 1-0